bitfinex/quotes_SOLUSD_20220218
["timestamp","ask_amount","ask_price","bid_price","bid_amount"]
[1645225729593,45.3753002,90.427,90.352,22.7254]
[1645225729794,6.2679074,90.426,90.352,22.7254]
[1645225730198,6.2679074,90.426,90.36,16.6026]
[1645225730396,45.3753002,90.427,90.36,128.0026]
[1645225730598,16.601,90.45,90.36,128.0026]
[1645225730802,6.26620406,90.449,90.361,2.8793831]
[1645225730998,6.26620406,90.456,90.361,2.8793831]
[1645225731198,6.26620406,90.456,90.363,111.4]
[1645225731400,23.8015,90.498,90.365,111.4]
[1645225731597,54.6881519,90.476,90.367,111.4]
[1645225731798,54.6881519,90.476,90.369,111.4]
[1645225732000,54.6881519,90.476,90.371,111.4]
[1645225732198,54.6881519,90.476,90.373,111.4]
[1645225732399,54.6881519,90.476,90.372,6.25]
[1645225732400,54.6881519,90.476,90.383,111.4]
[1645225732597,54.6881519,90.476,90.385,111.4]
[1645225732802,54.6881519,90.476,90.387,111.4]
[1645225733000,54.6881519,90.476,90.389,111.4]
[1645225733200,23.8015,90.498,90.391,111.4]
[1645225733400,6.2639073,90.497,90.401,111.4]
[1645225733600,6.2639073,90.497,90.402,0.25]
[1645225733900,23.11089898,90.52,90.403,111.4]
[1645225734101,29.05277771,90.519,90.405,111.4]
[1645225734300,43.91582707,90.509,90.407,111.4]
[1645225734500,6.26327771,90.508,90.408,0.25]
[1645225734701,6.26327771,90.508,90.43,127.989]
[1645225734899,43.91582707,90.509,90.431,41.61549158]
[1645225736007,43.91582707,90.509,90.44,127.9877]
[1645225737505,43.91582707,90.509,90.44,16.5877]
[1645225741117,43.91582707,90.509,90.44,16.6077]
[1645225745117,43.91582707,90.509,90.441,24.0506]
[1645225751348,43.91582707,90.509,90.441,24.0706]
[1645225753346,16.5903,90.5,90.441,24.0706]
[1645225756349,16.5903,90.5,90.441,24.0506]
[1645225759359,6.26268874,90.499,90.441,24.0506]
[1645225767486,6.26268874,90.499,90.442,2.6293831]
[1645225767686,6.26268874,90.507,90.442,2.6293831]
[1645225769490,24.533,90.508,90.45,16.586]
[1645225769688,6.26167417,90.507,90.451,63.49533093]
[1645225770088,6.26167417,90.507,90.451,23.5461]
[1645225770292,2.6293831,90.506,90.432,24.3137]
[1645225770489,6.26167417,90.505,90.433,23.5461]
[1645225771091,16.5899,90.5,90.433,23.5461]
[1645225771390,6.26167417,90.499,90.434,43.611478]
[1645225771590,24.533,90.508,90.451,0.02]
[1645225771790,6.2617221,90.507,90.451,0.02]
[1645225773595,6.2617221,90.507,90.451,111.42]
[1645225773796,4.71009747,90.548,90.453,111.4]
[1645225774196,4.71009747,90.548,90.454,2.6293831]
[1645225774694,44.32264945,90.547,90.454,2.6293831]
[1645225774899,6.26051557,90.546,90.455,0.25]
[1645225775294,6.26051557,90.546,90.456,2.6293831]
[1645225775495,6.26051557,90.546,90.46,127.9843]
[1645225775895,24.6674,90.545,90.461,26.3064831]
[1645225776295,6.26051557,90.544,90.461,26.3064831]
[1645225776895,6.26051557,90.544,90.462,2.6293831]
[1645225777097,6.26051557,90.544,90.463,38.78484288]
[1645225777296,6.26051557,90.544,90.464,23.3448]
[1645225777501,6.26051557,90.544,90.47,127.981]
[1645225778598,3.11860868,90.538,90.47,127.981]
[1645225779400,3.11860868,90.539,90.47,127.981]
[1645225779598,6.26051557,90.544,90.47,127.981]
[1645225779798,9.37912425,90.544,90.47,127.981]
[1645225780399,6.26051557,90.544,90.47,127.981]
[1645225782301,6.26051557,90.544,90.47,16.581]
[1645225782500,16.5818,90.54,90.47,16.581]
[1645225782901,6.26051557,90.539,90.47,16.581]
[1645225783302,16.5818,90.54,90.47,16.581]
[1645225783902,6.26010135,90.539,90.47,16.581]
[1645225784102,16.5818,90.54,90.47,16.581]
[1645225784502,6.26005258,90.539,90.47,16.581]
[1645225784702,16.5818,90.54,90.47,16.581]
[1645225785805,6.26010517,90.539,90.47,16.581]
[1645225786008,16.5818,90.54,90.47,16.581]
[1645225787005,16.5818,90.54,90.47,16.601]
[1645225790308,11.66916456,90.539,90.47,16.601]
[1645225791711,6.26009775,90.538,90.47,16.601]
[1645225792311,11.66916456,90.537,90.47,16.601]
[1645225792612,6.26009775,90.536,90.47,16.601]
[1645225793213,11.66916456,90.535,90.47,16.601]
[1645225793410,22.7893,90.534,90.47,16.601]
[1645225793611,18.6943296,90.533,90.47,16.601]
[1645225796813,6.25998744,90.532,90.47,16.601]
[1645225797014,6.25998744,90.532,90.47,16.581]
[1645225797314,16.5828,90.53,90.47,16.581]
[1645225797714,16.5828,90.53,90.464,23.3648]
[1645225797915,19.2121831,90.53,90.464,23.3648]
[1645225798117,6.26028457,90.529,90.464,23.3648]
[1645225799015,9.37889325,90.529,90.464,22.8648]
[1645225799216,9.37889325,90.53,90.464,22.8648]
[1645225799414,16.5847,90.52,90.464,22.8648]
[1645225799617,42.99865933,90.519,90.464,22.8648]
[1645225799821,45.62804243,90.519,90.464,0.02]
[1645225800021,141.20564718,90.518,90.408,16.9662]
[1645225800222,3.11860868,90.515,90.367,16.8302]
[1645225800424,3.11860868,90.515,90.392,45.7318]
[1645225800425,3.11860868,90.503,90.392,45.7318]
[1645225800624,3.11860868,90.495,90.393,43.04331167]
[1645225800821,3.11860868,90.487,90.393,43.04331167]
[1645225801022,3.11860868,90.482,90.393,43.04331167]
[1645225801222,3.11860868,90.475,90.393,43.04331167]
[1645225801626,20.01831972,90.448,90.393,43.04331167]
[1645225801821,1.56289121,90.44,90.393,43.04331167]
[1645225802021,1.56289121,90.441,90.393,43.04331167]
[1645225802221,1.56289121,90.44,90.353,16.3137]
[1645225802422,1.56289121,90.435,90.36,16.6025]
[1645225802622,1.56289121,90.434,90.36,16.6025]
[1645225803021,1.56289121,90.43,90.36,16.6025]
[1645225803226,1.56289121,90.425,90.36,16.6025]
[1645225803429,16.6039,90.42,90.361,50.78086194]
[1645225803627,16.6039,90.42,90.362,22.9215]
[1645225806632,16.6039,90.42,90.361,80.78086194]
[1645225816258,16.6039,90.42,90.361,30.0]
[1645225821768,16.6039,90.42,90.362,22.5039]
[1645225828274,42.99865933,90.429,90.364,24.53803023]
[1645225828477,1.56289121,90.428,90.365,111.65]
[1645225828676,42.99865933,90.429,90.365,114.2793831]
[1645225828873,42.99865933,90.429,90.366,2.6293831]
[1645225829474,42.99865933,90.429,90.37,128.0005]
[1645225829679,1.56289121,90.44,90.371,0.25]
[1645225829875,1.56289121,90.442,90.371,0.25]
[1645225830075,1.56289121,90.443,90.37,111.4]
[1645225830276,1.56289121,90.441,90.37,111.4]
[1645225830477,1.56289121,90.439,90.366,2.6293831]
[1645225830775,1.56289121,90.439,90.366,114.0293831]
[1645225830976,49.07102984,90.44,90.366,114.0293831]
[1645225831181,1.56289121,90.448,90.367,2.6293831]
[1645225831376,1.56289121,90.448,90.38,16.597]
[1645225831577,16.5977,90.45,90.381,22.8441]
[1645225831777,16.5977,90.45,90.381,25.4734831]
[1645225831979,16.5977,90.45,90.382,2.6293831]
[1645225832177,45.23629281,90.449,90.381,22.8441]
[1645225832378,45.23629281,90.449,90.39,16.5969]
[1645225834779,45.23629281,90.449,90.391,0.25]
[1645225834979,45.23629281,90.449,90.39,16.5969]
[1645225838582,45.23629281,90.449,90.39,33.0899]
[1645225841516,45.23629281,90.449,90.39,16.5969]
[1645225842112,45.23629281,90.449,90.391,0.25]
[1645225843012,45.23629281,90.449,90.39,19.2262831]
[1645225843212,45.23629281,90.449,90.39,16.5969]
[1645225843412,45.23629281,90.449,90.392,43.15178503]
[1645225843914,45.23629281,90.449,90.393,24.7365]
[1645225844315,45.23629281,90.449,90.4,16.5951]
[1645225845513,1.56289121,90.469,90.401,2.6293831]
[1645225845714,1.56289121,90.478,90.42,16.5916]
[1645225845912,1.56289121,90.479,90.421,24.7469]
[1645225846116,18.15669121,90.48,90.421,24.7469]
[1645225846513,54.74361886,90.479,90.422,26.74123592]
[1645225846715,53.18072765,90.479,90.422,26.74123592]
[1645225848914,1.56289121,90.482,90.422,26.74123592]
[1645225849116,16.5908,90.49,90.422,26.74123592]
[1645225849117,1.56289121,90.484,90.43,127.9897]
[1645225849318,1.56289121,90.49,90.43,16.5897]
[1645225849518,1.56289121,90.49,90.431,22.7994]
[1645225849817,1.56289121,90.491,90.431,22.7994]
[1645225850018,48.55820484,90.49,90.431,22.7994]
[1645225850218,48.55820484,90.49,90.432,24.4006]
[1645225851318,48.55820484,90.49,90.44,16.5873]
[1645225859524,48.55820484,90.49,90.44,127.9873]
[1645225862532,48.55820484,90.49,90.432,24.4006]
[1645225866235,65.14870484,90.49,90.432,24.4006]
[1645225866436,1.56289121,90.488,90.432,24.4006]
[1645225866842,1.56289121,90.486,90.432,24.4006]
[1645225867258,1.56289121,90.489,90.432,24.4006]
[1645225867461,1.56289121,90.487,90.432,24.4006]
[1645225867659,1.56289121,90.486,90.432,24.4006]
[1645225868464,16.5923,90.48,90.432,24.4006]
[1645225869665,1.56289121,90.489,90.433,2.6293831]
[1645225869865,1.56289121,90.495,90.433,114.0293831]
[1645225870066,1.56289121,90.501,90.433,114.0293831]
[1645225870366,1.56289121,90.502,90.434,2.6293831]
[1645225870663,51.47583261,90.502,90.434,2.6293831]
[1645225871566,1.56289121,90.5,90.44,16.588]
[1645225871765,1.56289121,90.501,90.441,111.4]
[1645225871965,0.68789121,90.503,90.441,114.0293831]
[1645225872165,23.1064,90.519,90.442,2.6293831]
[1645225872365,23.1064,90.519,90.443,23.9197]
[1645225872568,43.12186892,90.518,90.443,23.9197]
[1645225872866,43.12186892,90.518,90.444,2.6293831]
[1645225873066,43.12186892,90.518,90.45,16.585]
[1645225873367,43.12186892,90.518,90.451,41.57350604]
[1645225873766,16.5851,90.52,90.452,111.4]
[1645225873966,3.11860868,90.531,90.452,114.0293831]
[1645225874169,3.11860868,90.54,90.454,111.4]
[1645225874367,3.11860868,90.543,90.46,16.5835]
[1645225874765,6.25994711,90.542,90.461,2.6293831]
[1645225874967,47.68762145,90.541,90.461,114.0293831]
[1645225875368,47.68762145,90.541,90.462,2.6293831]
[1645225875667,47.68762145,90.541,90.463,23.2367]
[1645225875867,47.68762145,90.541,90.481,28.31951491]
[1645225876067,47.68762145,90.541,90.482,24.666]
[1645225879770,16.5812,90.54,90.482,24.666]
[1645225883977,16.5812,90.54,90.483,2.6293831]
[1645225884375,16.5792,90.55,90.49,16.5789]
[1645225884577,23.7947,90.551,90.49,16.5789]
[1645225884778,114.6,90.561,90.49,16.5789]
[1645225884976,24.4117,90.563,90.49,16.5789]
[1645225885376,49.22690948,90.562,90.49,16.5789]
[1645225886477,16.5776,90.56,90.49,16.5789]
[1645225888278,49.22690948,90.562,90.49,16.5789]
[1645225888478,49.22690948,90.562,90.491,2.6293831]
[1645225888679,49.22690948,90.562,90.5,16.5754]
[1645225888879,49.22690948,90.562,90.501,23.9821]
[1645225889079,49.22690948,90.562,90.501,26.6114831]
[1645225889280,49.22690948,90.562,90.502,2.6293831]
[1645225889680,49.22690948,90.562,90.501,23.9821]
[1645225890480,16.5781,90.56,90.501,23.9821]
[1645225891081,2.6293831,90.559,90.501,23.9821]
[1645225891483,2.6293831,90.559,90.481,28.31951491]
[1645225891681,2.6293831,90.559,90.482,22.976]
[1645225892281,49.22690948,90.562,90.482,22.976]
[1645225892483,16.5799,90.55,90.482,22.976]
[1645225892782,23.8658,90.549,90.482,22.976]
[1645225893782,23.8658,90.549,90.483,111.4]
[1645225893984,23.8658,90.549,90.49,16.5786]
[1645225894585,16.5774,90.56,90.49,16.5786]
[1645225894785,49.22690948,90.562,90.49,2.6293831]
[1645225896289,49.22690948,90.562,90.5,16.5766]
[1645225896488,49.22690948,90.562,90.483,111.4]
[1645225896687,22.873,90.561,90.483,111.4]
[1645225897493,16.5773,90.56,90.49,16.5785]
[1645225897689,16.0773,90.56,90.49,16.5785]
[1645225899290,114.0293831,90.559,90.481,28.31951491]
[1645225899491,16.5837,90.54,90.481,28.31951491]
[1645225905800,16.5837,90.54,90.47,16.5823]
[1645225906799,16.5837,90.54,90.471,40.9179433]
[1645225910725,16.5837,90.54,90.48,25.0]
[1645225911123,16.5837,90.54,90.481,23.9568]
[1645225914226,23.9051,90.549,90.481,23.9568]
[1645225914426,5.74799178,90.565,90.49,16.5786]
[1645225914626,3.11860868,90.566,90.49,16.5786]
[1645225914826,3.11860868,90.573,90.49,16.5786]
[1645225915027,3.11860868,90.574,90.49,16.5786]
[1645225915528,16.5774,90.56,90.49,16.5786]
[1645225916029,16.5774,90.56,90.491,111.4]
[1645225916229,16.5774,90.56,90.49,16.5786]
[1645225916430,16.5774,90.56,90.481,23.9568]
[1645225916931,6.25829337,90.559,90.481,23.9568]
[1645225917130,16.5803,90.55,90.481,23.9568]
[1645225918432,16.5803,90.55,90.49,16.5787]
[1645225922534,16.5803,90.55,90.481,23.9568]
[1645225926142,23.761,90.549,90.481,23.9568]
[1645225926842,16.5808,90.54,90.481,23.9568]
[1645225929943,16.5808,90.54,90.482,2.6293831]
[1645225930144,16.5808,90.54,90.481,23.9568]
[1645225939070,3.11860868,90.535,90.48,25.0]
[1645225939269,16.5866,90.52,90.48,25.0]
[1645225939771,13.79006957,90.519,90.481,48.17736273]
[1645225940572,16.5859,90.51,90.48,25.0]
[1645225941472,16.5859,90.51,90.48,79.61744837]
[1645225944172,40.72797851,90.519,90.48,79.61744837]
[1645225944372,16.5835,90.52,90.48,79.61744837]
[1645225954586,16.5835,90.52,90.5,30.0]
[1645225956692,16.5822,90.53,90.5,30.0]
[1645225958597,16.5822,90.53,90.51,25.0]
[1645225964699,2.6293831,90.529,90.51,25.0]
[1645225964900,16.587,90.52,90.51,25.0]
[1645225968924,16.5821,90.53,90.51,25.0]
[1645225969930,41.36777416,90.532,90.51,25.0]
[1645225971328,111.4,90.529,90.404,28.86540182]
[1645225971527,111.4,90.529,90.42,23.3155]
[1645225971727,3.11860868,90.525,90.42,23.3155]
[1645225971929,3.11860868,90.519,90.42,23.3155]
[1645225972126,3.11860868,90.52,90.42,23.3155]
[1645225972326,111.4,90.517,90.421,45.12839777]
[1645225972527,111.4,90.515,90.421,45.12839777]
[1645225972728,111.4,90.513,90.421,45.12839777]
[1645225972928,111.4,90.511,90.421,45.12839777]
[1645225973127,111.4,90.509,90.421,45.12839777]
[1645225973328,11.69296374,90.512,90.421,45.12839777]
[1645225973329,2.90311676,90.489,90.421,45.12839777]
[1645225974730,55.3136,90.49,90.421,45.12839777]
[1645225974928,24.4794,90.498,90.421,45.12839777]
[1645225975730,16.5909,90.48,90.421,45.12839777]
[1645225979233,16.5909,90.48,90.421,44.62839777]
[1645225983338,16.5891,90.49,90.422,111.4]
[1645225984337,16.5891,90.49,90.424,111.4]
[1645225984537,16.5891,90.49,90.421,44.62839777]
[1645225984938,16.5891,90.49,90.422,111.4]
[1645225985438,16.5891,90.49,90.43,16.5891]
[1645225985636,16.5891,90.49,90.431,24.0507]
[1645226001473,1.55908356,90.483,90.431,24.0507]
[1645226001757,16.5945,90.47,90.38,55.3109]
[1645226001955,16.5945,90.47,90.341,0.38]
[1645226001956,16.5945,90.47,90.395,24.6717]
[1645226002154,1.55908356,90.467,90.345,5.77133837]
[1645226002353,1.55908356,90.458,90.36,16.6018]
[1645226002554,55.3315,90.46,90.361,24.6717]
[1645226002555,1.55908356,90.453,90.361,24.6717]
[1645226002754,111.4,90.449,90.362,47.49492896]
[1645226002953,1.55908356,90.444,90.362,47.49492896]
[1645226003154,1.55908356,90.443,90.362,47.49492896]
[1645226003456,2.6293831,90.443,90.362,47.49492896]
[1645226003656,2.6293831,90.442,90.362,47.49492896]
[1645226003855,27.92007795,90.441,90.362,47.49492896]
[1645226004456,16.6039,90.43,90.362,47.49492896]
[1645226005256,111.4,90.429,90.362,47.49492896]
[1645226005457,10.5969011,90.409,90.362,47.49492896]
[1645226006757,111.4,90.438,90.362,47.49492896]
[1645226007157,2.6293831,90.437,90.362,47.49492896]
[1645226007456,16.6083,90.4,90.362,47.49492896]
[1645226013767,16.6083,90.4,90.347,24.4514]
[1645226014768,16.6083,90.4,90.348,49.98625467]
[1645226027413,16.6083,90.4,90.349,111.4]
[1645226027611,24.9211,90.425,90.348,49.98625467]
[1645226027612,16.6037,90.41,90.348,49.98625467]
[1645226027817,1.55908356,90.457,90.348,49.98625467]
[1645226028011,23.2187,90.458,90.348,49.98625467]
[1645226028212,2.6293831,90.446,90.349,6.0]
[1645226028605,2.6293831,90.446,90.348,161.38625467]
[1645226029309,16.6018,90.42,90.35,16.6037]
[1645226029506,16.6018,90.42,90.351,6.0]
[1645226029707,16.6018,90.42,90.349,6.0]
[1645226031412,16.6018,90.42,90.36,16.6025]
[1645226031609,16.6018,90.42,90.361,24.1358]
[1645226031811,16.6018,90.42,90.362,44.40676628]
[1645226033210,16.6018,90.42,90.363,6.0]
[1645226033810,16.6018,90.42,90.362,44.40676628]
[1645226043424,16.6004,90.43,90.363,111.65]
[1645226044038,35.88042757,90.457,90.363,0.25]
[1645226044438,35.88042757,90.457,90.363,6.25]
[1645226044640,35.88042757,90.457,90.363,0.25]
[1645226044845,35.88042757,90.457,90.363,16.972]
[1645226045041,35.88042757,90.457,90.364,111.4]
[1645226045243,35.88042757,90.457,90.366,111.4]
[1645226045443,16.5988,90.44,90.37,16.6007]
[1645226045641,16.5988,90.44,90.371,22.5752]
[1645226047143,2.6293831,90.439,90.371,22.5752]
[1645226047345,16.6028,90.42,90.371,22.5752]
[1645226048145,55.3373,90.45,90.371,22.5752]
[1645226048542,37.99321838,90.449,90.371,22.5752]
[1645226048945,23.7121,90.448,90.372,6.0]
[1645226049344,16.6006,90.43,90.372,6.0]
[1645226049545,0.52376067,90.429,90.372,6.0]
[1645226050645,16.6022,90.42,90.372,6.0]
[1645226051855,16.6022,90.42,90.371,22.5752]
[1645226052459,16.6006,90.43,90.371,22.5752]
[1645226056565,2.6293831,90.429,90.371,22.5752]
[1645226056766,5.92207149,90.419,90.371,22.5752]
[1645226058369,16.606,90.41,90.371,22.5752]
[1645226073106,55.3543,90.43,90.371,22.5752]
[1645226073107,16.6025,90.42,90.371,22.5752]
[1645226073305,23.7929,90.434,90.371,22.5752]
[1645226075410,50.89886365,90.434,90.371,22.5752]
[1645226076412,16.6008,90.43,90.371,22.5752]
[1645226077412,1.55908356,90.448,90.38,16.5987]
[1645226077413,16.5991,90.44,90.38,16.5987]
[1645226077812,23.7057,90.449,90.38,16.5987]
[1645226078212,23.7057,90.449,90.382,39.55275194]
[1645226079712,16.5987,90.44,90.382,39.55275194]
[1645226082016,1.94284498,90.438,90.382,39.55275194]
[1645226082217,16.604,90.43,90.381,24.8915]
[1645226082717,2.6293831,90.429,90.381,24.8915]
[1645226084415,36.05085371,90.419,90.381,24.8915]
[1645226085716,16.6057,90.41,90.381,24.8915]
[1645226088639,22.7982,90.429,90.381,24.8915]
[1645226088839,16.602,90.43,90.381,24.8915]
[1645226089140,1.55908356,90.449,90.381,24.8915]
[1645226089338,24.302,90.449,90.381,24.8915]
[1645226089539,28.68796903,90.448,90.381,24.8915]
[1645226089742,26.18796903,90.448,90.381,24.8915]
[1645226090140,16.5989,90.44,90.381,24.8915]
[1645226090540,24.4821,90.439,90.381,24.8915]
[1645226091851,16.6005,90.43,90.381,24.8915]
[1645226094546,14.1005,90.43,90.381,24.8915]
[1645226100950,14.1005,90.43,90.366,55.15015796]
[1645226101151,16.6053,90.42,90.366,55.15015796]
[1645226101353,26.18796903,90.419,90.366,55.15015796]
[1645226101951,25.68796903,90.419,90.366,55.15015796]
[1645226103251,25.68796903,90.419,90.367,24.0181]
[1645226103455,16.6045,90.41,90.367,24.0181]
[1645226110659,1.55908356,90.428,90.367,24.0181]
[1645226110862,16.6025,90.42,90.367,24.0181]
[1645226111061,1.55908356,90.442,90.368,2.6293831]
[1645226111262,1.55908356,90.442,90.368,114.0293831]
[1645226111462,1.55908356,90.444,90.369,0.25]
[1645226111664,1.55908356,90.455,90.369,2.6293831]
[1645226111961,32.65549765,90.454,90.37,2.8793831]
[1645226112161,32.65549765,90.454,90.371,6.0]
[1645226112362,16.5992,90.44,90.38,16.5981]
[1645226112562,2.8614814,90.439,90.381,42.24286299]
[1645226112763,2.8614814,90.439,90.382,22.9339]
[1645226113563,16.601,90.43,90.382,22.9339]
[1645226115064,16.601,90.43,90.346,23.5212]
[1645226115263,18.16008356,90.43,90.347,22.5667]
[1645226115663,16.6072,90.41,90.348,40.22226068]
[1645226115864,30.40968786,90.409,90.348,40.22226068]
[1645226116465,55.3573,90.42,90.348,40.22226068]
[1645226117468,16.6068,90.4,90.348,40.22226068]
[1645226120974,16.6047,90.41,90.348,40.22226068]
[1645226121174,16.6047,90.41,90.35,16.6041]
[1645226121374,1.55908356,90.428,90.351,0.25]
[1645226121580,1.55908356,90.438,90.351,2.8793831]
[1645226121777,1.55908356,90.445,90.352,8.6293831]
[1645226121974,25.45413503,90.444,90.353,0.25]
[1645226122174,25.45413503,90.444,90.353,2.8793831]
[1645226122395,25.45413503,90.444,90.354,8.6293831]
[1645226122596,25.45413503,90.444,90.355,0.25]
[1645226122797,25.45413503,90.444,90.356,111.4]
[1645226123000,25.45413503,90.444,90.358,111.4]
[1645226123197,25.45413503,90.444,90.359,6.0]
[1645226123399,16.5995,90.44,90.36,16.6009]
[1645226123597,16.5995,90.44,90.361,6.0]
[1645226123797,16.5995,90.44,90.362,45.81737823]
[1645226123997,16.5995,90.44,90.363,6.0]
[1645226124798,16.5995,90.44,90.364,2.6293831]
[1645226124995,16.5995,90.44,90.365,6.0]
[1645226125197,16.5995,90.44,90.364,2.6293831]
[1645226125496,16.5995,90.44,90.362,45.81737823]
[1645226125697,1.55908356,90.438,90.362,45.81737823]
[1645226125896,10.06284402,90.419,90.362,45.81737823]
[1645226129103,16.6013,90.43,90.362,48.44676133]
[1645226129303,16.6013,90.43,90.37,16.6004]
[1645226129505,1.55908356,90.441,90.37,16.6004]
[1645226129703,24.9761,90.443,90.371,26.4126831]
[1645226130106,27.65899846,90.442,90.372,2.6293831]
[1645226130304,16.5995,90.44,90.371,23.7833]
[1645226136007,16.5995,90.44,90.372,2.6293831]
[1645226136610,16.5995,90.44,90.373,6.0]
[1645226137010,16.5995,90.44,90.374,2.6293831]
[1645226137313,43.63010498,90.44,90.38,16.5986]
[1645226140416,43.63010498,90.44,90.381,2.6293831]
[1645226140816,16.5977,90.45,90.381,2.6293831]
[1645226141013,16.5977,90.45,90.382,23.7693]
[1645226141421,16.5977,90.45,90.39,16.5971]
[1645226141615,1.55908356,90.458,90.39,16.5971]
[1645226141816,34.53675138,90.457,90.391,54.65608489]
[1645226142018,1.55908356,90.463,90.391,54.65608489]
[1645226142216,1.55908356,90.463,90.392,114.2793831]
[1645226142415,1.55908356,90.463,90.393,6.0]
[1645226142617,1.55908356,90.472,90.394,0.25]
[1645226142817,1.55908356,90.473,90.394,27.8549831]
[1645226143019,32.230608,90.472,90.395,6.0]
[1645226143217,32.230608,90.472,90.395,8.6293831]
[1645226143418,16.594,90.47,90.4,16.5949]
[1645226143821,16.594,90.47,90.394,24.9756]
[1645226144123,1.55908356,90.461,90.394,24.9756]
[1645226144321,1.55908356,90.46,90.394,24.9756]
[1645226144620,3.28637105,90.458,90.394,24.9756]
[1645226145321,16.5992,90.45,90.394,24.9756]
[1645226146726,16.5992,90.45,90.37,16.6006]
[1645226147223,18.15828356,90.45,90.37,16.6006]
[1645226147424,16.5992,90.45,90.37,16.6006]
[1645226147624,16.5992,90.45,90.385,52.74457467]
[1645226148023,18.15828356,90.45,90.385,52.74457467]
[1645226148425,16.6013,90.43,90.385,52.74457467]
[1645226148625,32.230608,90.429,90.385,52.74457467]
[1645226150628,16.6013,90.43,90.385,52.74457467]
[1645226151930,1.55908356,90.446,90.385,52.74457467]
[1645226152129,16.5989,90.44,90.385,52.74457467]
[1645226152729,16.5989,90.44,90.386,23.6341]
[1645226154131,16.5989,90.44,90.387,2.6293831]
[1645226154531,28.78588094,90.439,90.386,23.6341]
[1645226155737,16.5989,90.44,90.386,23.6341]
[1645226155933,16.5989,90.44,90.386,26.2634831]
[1645226156150,16.5989,90.44,90.386,23.6341]
[1645226156552,16.5989,90.44,90.387,2.6293831]
[1645226156749,16.5989,90.44,90.386,23.6341]
[1645226160351,16.5989,90.44,90.387,111.4]
[1645226160552,1.56217599,90.471,90.391,111.4]
[1645226160853,1.56217599,90.473,90.393,111.4]
[1645226161051,1.56217599,90.473,90.395,111.4]
[1645226161251,1.56217599,90.476,90.397,111.4]
[1645226161454,1.56217599,90.476,90.401,111.4]
[1645226161652,1.56217599,90.476,90.403,111.4]
[1645226161851,1.56217599,90.478,90.405,111.4]
[1645226162054,1.56217599,90.478,90.407,111.4]
[1645226162252,1.56217599,90.479,90.408,117.65]
[1645226162455,1.56217599,90.48,90.41,16.5911]
[1645226162654,1.56217599,90.48,90.411,6.25]
[1645226162854,1.56217599,90.479,90.411,6.0]
[1645226163154,1.56217599,90.481,90.412,2.8793831]
[1645226163356,1.56217599,90.481,90.412,2.6293831]
[1645226163556,1.56217599,90.48,90.414,44.41088562]
[1645226163854,1.56217599,90.48,90.415,2.6293831]
[1645226164056,1.56217599,90.484,90.415,2.6293831]
[1645226164260,1.56217599,90.483,90.416,6.0]
[1645226164459,1.56217599,90.484,90.42,16.591]
[1645226164661,16.5929,90.48,90.414,44.41088562]
[1645226165159,15.18860068,90.475,90.414,44.41088562]
[1645226165858,1.56217599,90.476,90.414,44.41088562]
[1645226166058,1.56217599,90.474,90.414,44.41088562]
[1645226166259,1.56217599,90.473,90.414,44.41088562]
[1645226166458,1.56217599,90.475,90.415,2.6293831]
[1645226166658,1.56217599,90.48,90.415,2.6293831]
[1645226166864,1.56217599,90.479,90.415,2.6293831]
[1645226167061,1.56217599,90.48,90.415,2.6293831]
[1645226167363,16.5925,90.48,90.42,16.5913]
[1645226167663,16.5925,90.48,90.421,26.9952831]
[1645226168059,16.5925,90.48,90.422,2.6293831]
[1645226168260,18.15467599,90.48,90.421,24.3659]
[1645226168460,1.56217599,90.478,90.414,44.41088562]
[1645226168665,1.56217599,90.474,90.414,44.41088562]
[1645226168860,1.56217599,90.478,90.415,23.3551]
[1645226169160,16.5925,90.48,90.415,23.3551]
[1645226169161,1.56217599,90.479,90.415,23.3551]
[1645226170563,1.56217599,90.479,90.416,2.6293831]
[1645226170760,16.5925,90.48,90.416,2.6293831]
[1645226172163,16.5925,90.48,90.42,16.5914]
[1645226172565,16.5925,90.48,90.421,2.6293831]